fUSD/lending_fUSD_20240327
["ID","MTS","AMOUNT","RATE_DAILY","PERIOD"]
[320717751,1711531843143,-500.0,0.00054794,120]
[320717752,1711531843153,-500.0,0.00054794,120]
[320717753,1711531843162,-500.0,0.00054794,120]
[320717754,1711531843171,-500.0,0.00054794,120]
[320717755,1711531843180,-500.0,0.00054794,120]
[320717756,1711531843189,-1206.79,0.00054794,120]
[320717757,1711531843199,-500.0,0.00054794,120]
[320717758,1711531843209,-500.0,0.00054794,120]
[320717759,1711531843218,-500.0,0.00054794,120]
[320717760,1711531843227,-451.58,0.00054794,120]
[320717761,1711531843236,-500.0,0.00054794,120]
[320717762,1711531843245,-500.0,0.00054794,120]
[320717763,1711531843254,-389.58310809,0.00054794,120]
[320717764,1711531843264,-256.51,0.00054794,120]
[320717765,1711531843273,-206.83608928,0.00054794,120]
[320717766,1711531843282,-500.0,0.00054794,120]
[320717767,1711531843291,-500.0,0.00054794,120]
[320717768,1711531843301,-151.0,0.00054794,120]
[320717769,1711531843310,-500.0,0.00054794,120]
[320717770,1711531843320,-693.22,0.00054794,120]
[320717771,1711531843330,-500.0,0.00054794,120]
[320717772,1711531843341,-500.0,0.00054794,120]
[320717773,1711531843350,-500.0,0.00054794,120]
[320717774,1711531843359,-151.0,0.00054794,120]
[320717775,1711531843368,-292.160475,0.00054794,120]
[320717776,1711531843377,-633.17,0.00054794,120]
[320717777,1711531843387,-500.0,0.00054794,120]
[320717778,1711531843396,-500.0,0.00054794,120]
[320717779,1711531843406,-500.0,0.00054794,120]
[320717780,1711531843415,-520.11568073,0.00054794,120]
[320717781,1711531843426,-500.0,0.00054794,120]
[320717782,1711531843436,-500.0,0.00054794,120]
[320717783,1711531843445,-500.0,0.00054794,120]
[320717785,1711531843455,-500.0,0.00054794,120]
[320717786,1711531843464,-500.0,0.00054794,120]
[320717788,1711531843473,-500.0,0.00054794,120]
[320717789,1711531843482,-500.0,0.00054794,120]
[320717790,1711531843491,-500.0,0.00054794,120]
[320717791,1711531843501,-500.0,0.00054794,2]
[320717792,1711531843510,-500.0,0.00054794,120]
[320717793,1711531843520,-500.0,0.00054794,120]
[320717794,1711531843531,-281.621109,0.00054794,120]
[320717795,1711531843544,-500.0,0.00054794,120]
[320717796,1711531843554,-500.0,0.00054794,120]
[320717797,1711531843564,-500.0,0.00054794,120]
[320717799,1711531843574,-500.0,0.00054794,120]
[320717800,1711531843584,-508.48938092,0.00054794,120]
[320717801,1711531843593,-500.0,0.00054794,120]
[320717802,1711531843601,-500.0,0.00054794,2]
[320717803,1711531843611,-551.76,0.00054794,120]
[320717804,1711531843620,-535.46,0.00054794,120]
[320717805,1711531843629,-500.0,0.00054794,120]
[320717806,1711531843638,-151.0,0.00054794,7]
[320717807,1711531843648,-151.0,0.00054794,7]
[320717808,1711531843657,-500.0,0.00054794,120]
[320717809,1711531843667,-500.0,0.00054794,120]
[320717810,1711531843676,-500.0,0.00054794,120]
[320717811,1711531843686,-500.0,0.00054794,120]
[320717812,1711531843695,-566.32141082,0.00054794,120]
[320717813,1711531843705,-500.0,0.00054794,120]
[320717814,1711531843714,-151.0,0.00054794,120]
[320717815,1711531843724,-151.0,0.00054794,120]
[320717816,1711531843733,-500.0,0.00054794,120]
[320717817,1711531843743,-151.0,0.00054794,120]
[320717818,1711531843754,-151.0,0.00054794,120]
[320717819,1711531843764,-500.0,0.00054794,120]
[320717820,1711531843773,-215.52844488,0.00054794,120]
[320717821,1711531843940,-502.07744116,0.00054794,120]
[320717822,1711531843951,-535.24,0.00054794,120]
[320717823,1711531843961,-500.0,0.00054794,120]
[320717824,1711531843970,-736.96,0.00054794,120]
[320717825,1711531843979,-500.0,0.00054794,120]
[320717826,1711531843989,-500.0,0.00054794,120]
[320717827,1711531844002,-500.0,0.00054794,120]
[320717828,1711531844012,-500.0,0.00054794,120]
[320717829,1711531844022,-500.0,0.00054794,120]
[320717830,1711531844032,-500.0,0.00054794,120]
[320717831,1711531844042,-261.273612,0.00054794,120]
[320717832,1711531844052,-500.0,0.00054794,120]
[320717833,1711531844062,-500.0,0.00054794,120]
[320717834,1711531844071,-516.86,0.00054794,120]
[320717835,1711531844080,-500.0,0.00054794,120]
[320717836,1711531844091,-440.12,0.00054794,120]
[320717837,1711531844100,-500.0,0.00054794,120]
[320717838,1711531844109,-151.0,0.00054794,120]
[320717839,1711531844118,-151.0,0.00054794,120]
[320717840,1711531844129,-500.0,0.00054794,120]
[320717841,1711531844138,-150.0,0.00054794,120]
[320717842,1711531844148,-563.33,0.00054794,120]
[320717843,1711531844158,-500.0,0.00054794,120]
[320717844,1711531844166,-592.86,0.00054794,120]
[320717845,1711531844176,-500.0,0.00054794,120]
[320717846,1711531844185,-151.0,0.00054794,14]
[320717847,1711531844195,-151.0,0.00054794,14]
[320717848,1711531844204,-1836.62,0.00054794,120]
[320717849,1711531844213,-151.0,0.00054794,120]
[320717850,1711531844222,-1118.43,0.00054794,120]
[320717851,1711531844231,-151.0,0.00054794,120]
[320717852,1711531844239,-382.18816116,0.00054794,2]
[320717853,1711531844249,-500.0,0.00054794,120]
[320717854,1711531844257,-151.0,0.00054794,120]
[320717855,1711531844266,-151.0,0.00054794,120]
[320717856,1711531844275,-500.0,0.00054794,120]
[320717857,1711531844285,-740.02,0.00054794,120]
[320717858,1711531844294,-753.17,0.00054794,120]
[320717859,1711531844303,-1656.49,0.00054794,120]
[320717860,1711531844312,-500.0,0.00054794,120]
[320717861,1711531844322,-500.0,0.00054794,120]
[320717862,1711531844331,-151.0,0.00054794,30]
[320717863,1711531844341,-151.0,0.00054794,30]
[320717864,1711531844351,-915.24,0.00054794,120]
[320717865,1711531844361,-500.0,0.00054794,120]
[320717866,1711531844370,-1170.35,0.00054794,120]
[320717867,1711531844380,-517.36,0.00054794,120]
[320717868,1711531844389,-301.00277439,0.00054794,120]
[320717869,1711531844399,-500.0,0.00054794,120]
[320717870,1711531844409,-480.873576,0.00054794,120]
[320717871,1711531844419,-500.0,0.00054794,120]
[320717872,1711531844440,-500.0,0.00054794,120]
[320717873,1711531844464,-500.0,0.00054794,120]
[320717874,1711531844487,-500.0,0.00054794,120]
[320717875,1711531844510,-579.11,0.00054794,120]
[320717876,1711531844533,-574.86,0.00054794,120]
[320717877,1711531844554,-500.0,0.00054794,120]
[320717878,1711531844576,-680.13,0.00054794,120]
[320717879,1711531844600,-1000.0,0.00054794,120]
[320717880,1711531844625,-1000.0,0.00054794,120]
[320717881,1711531844634,-338.23,0.00054794,120]
[320717882,1711531844643,-1000.0,0.00054794,120]
[320717883,1711531844653,-500.0,0.00054794,120]
[320717884,1711531844663,-1000.0,0.00054794,120]
[320717885,1711531844673,-1000.0,0.00054794,120]
[320717886,1711531844682,-1000.0,0.00054794,120]
[320717887,1711531844692,-256.73615809,0.00054794,120]
[320717888,1711531844701,-500.0,0.00054794,120]
[320717889,1711531844710,-874.66,0.00054794,120]
[320717890,1711531844719,-500.0,0.00054794,120]
[320717891,1711531844729,-500.0,0.00054794,120]
[320717892,1711531844739,-670.76,0.00054794,120]
[320717893,1711531844748,-500.0,0.00054794,120]
[320717894,1711531844758,-606.59,0.00054794,120]
[320717895,1711531844767,-151.0,0.00054794,120]
[320717896,1711531844776,-151.0,0.00054794,120]
[320717897,1711531844786,-610.94,0.00054794,120]
[320717898,1711531844795,-500.0,0.00054794,120]
[320717899,1711531844805,-500.0,0.00054794,120]
[320717900,1711531844815,-562.52,0.00054794,120]
[320717901,1711531844825,-1071.44,0.00054794,120]
[320717902,1711531844835,-764.04,0.00054794,120]
[320717903,1711531844845,-676.23,0.00054794,120]
[320717904,1711531844855,-160.3867,0.00054794,120]
[320717905,1711531844864,-802.42,0.00054794,120]
[320717906,1711531844873,-160.3867,0.00054794,120]
[320717907,1711531844883,-500.0,0.00054794,120]
[320717908,1711531844892,-160.3867,0.00054794,120]
[320717909,1711531844902,-500.0,0.00054794,120]
[320717910,1711531844912,-160.3867,0.00054794,120]
[320717911,1711531844921,-844.19,0.00054794,120]
[320717912,1711531844931,-1132.52,0.00054794,120]
[320717913,1711531844940,-851.58,0.00054794,120]
[320717914,1711531844950,-500.0,0.00054794,120]
[320717915,1711531844959,-516.24,0.00054794,120]
[320717916,1711531844969,-539.41,0.00054794,120]
[320717917,1711531844978,-380.65171191,0.00054794,120]
[320717918,1711531844989,-500.0,0.00054794,120]
[320717919,1711531844999,-681.78,0.00054794,120]
[320717920,1711531845012,-548.74,0.00054794,120]
[320717921,1711531845021,-500.0,0.00054794,120]
[320717922,1711531845030,-500.0,0.00054794,120]
[320717923,1711531845039,-510.78353411,0.00054794,120]
[320717924,1711531845050,-677.36,0.00054794,120]
[320717925,1711531845059,-394.96,0.00054794,120]
[320717926,1711531845068,-669.94,0.00054794,120]
[320717927,1711531845077,-151.0,0.00054794,120]
[320717928,1711531845088,-151.0,0.00054794,120]
[320717929,1711531845099,-500.0,0.00054794,120]
[320717930,1711531845109,-261.04,0.00054794,120]
[320717931,1711531845119,-151.0,0.00054794,120]
[320717932,1711531845129,-151.0,0.00054794,120]
[320717933,1711531845139,-198.88165296,0.00054794,120]
[320717934,1711531845150,-755.61,0.00054794,120]
[320717935,1711531845159,-902.14,0.00054794,120]
[320717936,1711531845169,-273.86012078,0.00054794,120]
[320717937,1711531845179,-500.0,0.00054794,120]
[320717938,1711531845189,-566.94,0.00054794,120]
[320717939,1711531845198,-704.94,0.00054794,120]
[320717940,1711531845208,-500.0,0.00054794,120]
[320717941,1711531845218,-1074.4,0.00054794,120]
[320717942,1711531845229,-500.0,0.00054794,120]
[320717943,1711531845241,-625.39,0.00054794,120]
[320717944,1711531845251,-508.96779356,0.00054794,120]
[320717945,1711531845262,-702.34,0.00054794,120]
[320717946,1711531845272,-2025.1,0.00054794,120]
[320717947,1711531845282,-500.0,0.00054794,120]
[320717948,1711531845292,-1311.57,0.00054794,120]
[320717949,1711531845302,-544.12,0.00054794,120]
[320717950,1711531845311,-151.0,0.00054794,120]
[320717951,1711531845321,-500.0,0.00054794,120]
[320717952,1711531845330,-151.0,0.00054794,120]
[320717953,1711531845340,-745.46,0.00054794,120]
[320717954,1711531845350,-151.0,0.00054794,120]
[320717955,1711531845360,-151.0,0.00054794,120]
[320717956,1711531845369,-313.32,0.00054794,120]
[320717957,1711531845378,-500.0,0.00054794,120]
[320717958,1711531845388,-500.0,0.00054794,120]
[320717959,1711531845397,-520.99,0.00054794,120]
[320717960,1711531845406,-632.89,0.00054794,120]
[320717961,1711531845416,-500.0,0.00054794,120]
[320717962,1711531845425,-508.31,0.00054794,120]
[320717963,1711531845434,-500.0,0.00054794,120]
[320717964,1711531845443,-500.0,0.00054794,120]
[320717965,1711531845453,-151.0,0.00054794,120]
[320717966,1711531845462,-151.0,0.00054794,120]
[320717967,1711531845471,-573.76,0.00054794,120]
[320717968,1711531845481,-500.0,0.00054794,120]
[320717969,1711531845490,-500.0,0.00054794,120]
[320717970,1711531845500,-255.357405,0.00054794,120]
[320717971,1711531845509,-754.7,0.00054794,120]
[320717972,1711531845518,-608.0,0.00054794,120]
[320717973,1711531845529,-500.0,0.00054794,120]
[320717974,1711531845538,-810.04,0.00054794,120]
[320717975,1711531845548,-151.0,0.00054794,120]
[320717976,1711531845557,-151.0,0.00054794,120]
[320717977,1711531845567,-151.0,0.00054794,120]
[320717978,1711531845576,-500.0,0.00054794,120]
[320717979,1711531845587,-151.0,0.00054794,120]
[320717980,1711531845596,-500.0,0.00054794,120]
[320717981,1711531845606,-496.0574366,0.00054794,120]
[320717982,1711531845615,-500.0,0.00054794,120]
[320717983,1711531845625,-1121.74,0.00054794,120]
[320717984,1711531845634,-500.0,0.00054794,120]
[320717985,1711531845643,-171.289172,0.00054794,120]
[320717986,1711531845653,-500.0,0.00054794,120]
[320717987,1711531845662,-171.289172,0.00054794,120]
[320717988,1711531845671,-517.79,0.00054794,120]
[320717989,1711531845681,-171.289172,0.00054794,120]
[320717990,1711531845690,-171.289172,0.00054794,120]
[320717991,1711531845700,-500.0,0.00054794,120]
[320717992,1711531845709,-500.0,0.00054794,120]
[320717993,1711531845719,-504.28,0.00054794,120]
[320717994,1711531845728,-611.7,0.00054794,120]
[320717995,1711531845737,-151.0,0.00054794,120]
[320717996,1711531845746,-151.0,0.00054794,120]
[320717997,1711531845756,-1241.73,0.00054794,120]
[320717998,1711531845766,-504.6712736,0.00054794,120]
[320718000,1711531845775,-500.0,0.00054794,7]
[320718001,1711531845785,-760.26,0.00054794,120]
[320718002,1711531845795,-500.0,0.00054794,120]
[320718003,1711531845805,-674.47,0.00054794,120]
[320718004,1711531845814,-1173.96,0.00054794,120]
[320718005,1711531845823,-605.74,0.00054794,120]
[320718006,1711531845833,-500.0,0.00054794,120]
[320718007,1711531845843,-500.0,0.00054794,120]
[320718008,1711531845852,-500.0,0.00054794,120]
[320718009,1711531845862,-482.75,0.00054794,120]
[320718010,1711531845872,-500.0,0.00054794,120]
[320718011,1711531845882,-667.11,0.00054794,120]
[320718013,1711531845892,-564.99,0.00054794,120]
[320718015,1711531845902,-500.0,0.00054794,120]
[320718017,1711531845911,-549.9,0.00054794,120]
[320718019,1711531845920,-500.0,0.00054794,120]
[320718021,1711531845930,-500.0,0.00054794,120]
[320718024,1711531845940,-548.74,0.00054794,120]
[320718026,1711531845949,-578.56,0.00054794,120]
[320718028,1711531845959,-528.31,0.00054794,120]
[320718030,1711531845968,-521.11347212,0.00054794,120]
[320718032,1711531845977,-201.1643096,0.00054794,120]
[320718034,1711531845986,-1998.9,0.00054794,120]
[320718036,1711531845995,-399.73,0.00054794,120]
[320718037,1711531846005,-500.0,0.00054794,120]
[320718038,1711531846018,-839.13,0.00054794,120]
[320718039,1711531846028,-500.0,0.00054794,120]
[320718040,1711531846037,-500.0,0.00054794,120]
[320718041,1711531846049,-500.0,0.00054794,120]
[320718042,1711531846058,-645.46,0.00054794,120]
[320718043,1711531846068,-487.22,0.00054794,120]
[320718044,1711531846077,-258.72,0.00054794,120]
[320718045,1711531846088,-500.0,0.00054794,120]
[320718046,1711531846097,-693.58,0.00054794,120]
[320718047,1711531846107,-152.41,0.00054794,120]
[320718048,1711531846116,-500.0,0.00054794,120]
[320718049,1711531846125,-652.58,0.00054794,120]
[320718050,1711531846135,-500.0,0.00054794,120]
[320718051,1711531846144,-500.0,0.00054794,120]
[320718052,1711531846153,-500.0,0.00054794,120]
[320718053,1711531846162,-1267.72,0.00054794,120]
[320718054,1711531846172,-500.0,0.00054794,120]
[320718055,1711531846181,-792.29,0.00054794,120]
[320718056,1711531846190,-631.72,0.00054794,120]
[320718057,1711531846199,-500.0,0.00054794,120]
[320718058,1711531846208,-500.0,0.00054794,120]
[320718059,1711531846218,-906.46,0.00054794,120]
[320718060,1711531846227,-519.55839831,0.00054794,120]
[320718061,1711531846236,-500.0,0.00054794,120]
[320718062,1711531846245,-500.0,0.00054794,120]
[320718063,1711531846254,-371.83,0.00054794,120]
[320718064,1711531846263,-500.0,0.00054794,120]
[320718065,1711531846273,-500.0,0.00054794,120]
[320718066,1711531846282,-500.0,0.00054794,120]
[320718067,1711531846291,-500.0,0.00054794,120]
[320718068,1711531846300,-500.0,0.00054794,120]
[320718069,1711531846310,-1153.06,0.00054794,120]
[320718070,1711531846319,-500.0,0.00054794,120]
[320718071,1711531846327,-500.0,0.00054794,120]
[320718072,1711531846338,-746.11,0.00054794,120]
[320718073,1711531846347,-151.0,0.00054794,120]
[320718074,1711531846356,-717.93,0.00054794,120]
[320718075,1711531846365,-151.0,0.00054794,120]
[320718076,1711531846374,-770.84,0.00054794,120]
[320718077,1711531846383,-589.03,0.00054794,120]
[320718078,1711531846393,-509.66,0.00054794,120]
[320718079,1711531846402,-207.89,0.00054794,120]
[320718080,1711531846412,-500.0,0.00054794,120]
[320718081,1711531846422,-151.0,0.00054794,120]
[320718082,1711531846431,-276.538599,0.00054794,120]
[320718083,1711531846440,-500.0,0.00054794,120]
[320718084,1711531846450,-500.0,0.00054794,120]
[320718085,1711531846459,-509.24304044,0.00054794,120]
[320718086,1711531846468,-500.0,0.00054794,120]
[320718087,1711531846477,-1239.68,0.00054794,120]
[320718089,1711531846486,-500.0,0.00054794,120]
[320718091,1711531846496,-500.0,0.00054794,120]
[320718092,1711531846505,-500.0,0.00054794,120]
[320718093,1711531846514,-1596.95,0.00054794,120]
[320718094,1711531846524,-500.0,0.00054794,120]
[320718095,1711531846533,-500.0,0.00054794,120]
[320718096,1711531846543,-1339.94,0.00054794,120]
[320718097,1711531846552,-1183.42,0.00054794,120]
[320718098,1711531846562,-500.0,0.00054794,120]
[320718099,1711531846571,-500.0,0.00054794,120]
[320718100,1711531846580,-1491.19,0.00054794,120]
[320718101,1711531846591,-500.0,0.00054794,120]
[320718102,1711531846601,-500.0,0.00054794,120]
[320718103,1711531846612,-1446.75,0.00054794,120]
[320718104,1711531846621,-500.0,0.00054794,120]
[320718105,1711531846631,-151.0,0.00054794,120]
[320718106,1711531846641,-151.0,0.00054794,120]
[320718107,1711531846651,-515.94,0.00054794,120]
[320718108,1711531846660,-500.0,0.00054794,120]
[320718109,1711531846670,-500.0,0.00054794,120]
[320718110,1711531846680,-9255.46,0.00054794,120]
[320718111,1711531846689,-500.0,0.00054794,120]
[320718112,1711531846698,-1027.29,0.00054794,120]
[320718113,1711531846708,-993.13,0.00054794,120]
[320718114,1711531846717,-625.4,0.00054794,120]
[320718115,1711531846726,-500.0,0.00054794,120]
[320718116,1711531846735,-500.0,0.00054794,120]
[320718117,1711531846745,-500.0,0.00054794,120]
[320718118,1711531846754,-6010.57,0.00054794,120]
[320718119,1711531846764,-2479.29,0.00054794,120]
[320718120,1711531846774,-689.69,0.00054794,120]
[320718121,1711531846784,-1543.77,0.00054794,120]
[320718122,1711531846793,-1516.23,0.00054794,120]
[320718123,1711531846803,-205.651128,0.00054794,120]
[320718124,1711531846812,-311.81559997,0.00054794,120]
[320718125,1711531846821,-1298.51,0.00054794,120]
[320718126,1711531846830,-500.0,0.00054794,120]
[320718127,1711531846841,-900.15,0.00054794,120]
[320718128,1711531846850,-7570.24,0.00054794,120]
[320718129,1711531846859,-2518.49,0.00054794,120]
[320718130,1711531846868,-1843.36,0.00054794,120]
[320718131,1711531846877,-1951.1,0.00054794,120]
[320718132,1711531846886,-8217.31,0.00054794,120]
[320718133,1711531846895,-10648.76,0.00054794,120]
[320718134,1711531846905,-815.48,0.00054794,120]
[320718135,1711531846914,-4567.74,0.00054794,120]
[320718136,1711531846923,-5821.4,0.00054794,120]
[320718137,1711531846932,-16192.89,0.00054794,120]
[320718138,1711531846941,-1945.24,0.00054794,120]
[320718139,1711531846950,-500.0,0.00054794,120]
[320718140,1711531846959,-14993.94,0.00054794,120]
[320718141,1711531846968,-638.93,0.00054794,120]
[320718142,1711531846978,-607.15,0.00054794,120]
[320718143,1711531846988,-4506.13,0.00054794,120]
[320718144,1711531846998,-975.08,0.00054794,120]
[320718145,1711531847012,-2152.72,0.00054794,120]
[320718146,1711531847021,-508.01786223,0.00054794,120]
[320718147,1711531847030,-500.0,0.00054794,120]
[320718148,1711531847039,-2025.95,0.00054794,120]
[320718149,1711531847197,-834.27,0.00054794,120]
[320718150,1711531847207,-1941.23,0.00054794,120]
[320718151,1711531847217,-500.0,0.00054794,120]
[320718152,1711531847227,-375.53,0.00054794,120]
[320718153,1711531847237,-1253.97,0.00054794,120]
[320718154,1711531847247,-500.0,0.00054794,120]
[320718155,1711531847257,-1846.5,0.00054794,120]
[320718156,1711531847267,-504.25181487,0.00054794,120]
[320718157,1711531847276,-500.0,0.00054794,120]
[320718158,1711531847286,-718.34,0.00054794,120]
[320718159,1711531847295,-5612.19,0.00054794,120]
[320718160,1711531847304,-2198.64,0.00054794,120]
[320718161,1711531847314,-88899.08,0.00054794,120]
[320718162,1711531847324,-554.52859994,0.00054794,120]
[320718163,1711531847335,-895.87,0.00054794,120]
[320718164,1711531847343,-1956.19,0.00054794,120]
[320718165,1711531847352,-5057.24,0.00054794,120]
[320718166,1711531847361,-500.0,0.00054794,120]
[320718167,1711531847371,-4505.88,0.00054794,120]
[320718168,1711531847380,-831.09,0.00054794,120]
[320718169,1711531847389,-12667.88,0.00054794,120]
[320718170,1711531847399,-2228.45,0.00054794,120]
[320718171,1711531847409,-49453.04,0.00054794,120]
[320718172,1711531847418,-500.0,0.00054794,120]
[320718173,1711531847427,-20350.58,0.00054794,120]
[320718174,1711531847436,-371.23448409,0.00054794,120]
[320718175,1711531847445,-1986.37,0.00054794,120]
[320718176,1711531847455,-33040.61,0.00054794,120]
[320718177,1711531847464,-500.0,0.00054794,7]
[320718178,1711531847473,-500.0,0.00054794,120]
[320718179,1711531847483,-500.0,0.00054794,120]
[320718180,1711531847492,-1568.65,0.00054794,120]
[320718181,1711531847501,-500.0,0.00054794,120]
[320718182,1711531847511,-1356.91,0.00054794,120]
[320718183,1711531847522,-512.55038254,0.00054794,120]
[320718184,1711531847532,-4171.87,0.00054794,120]
[320718185,1711531847542,-8728.41,0.00054794,120]
[320718186,1711531847554,-1972.92,0.00054794,120]
[320718187,1711531847564,-1671.83,0.00054794,120]
[320718188,1711531847573,-654.94,0.00054794,120]
[320718189,1711531847583,-500.0,0.00054794,120]
[320718190,1711531847593,-1146.86,0.00054794,120]
[320718191,1711531847603,-2325.18,0.00054794,120]
[320718192,1711531847613,-1591.24,0.00054794,120]
[320718193,1711531847623,-500.0,0.00054794,120]
[320718194,1711531847634,-975.38,0.00054794,120]
[320718195,1711531847643,-1189.59,0.00054794,120]
[320718196,1711531847652,-500.0,0.00054794,65]
[320718197,1711531847662,-640.39,0.00054794,120]
[320718198,1711531847671,-10580.07,0.00054794,120]
[320718199,1711531847681,-500.0,0.00054794,120]
[320718200,1711531847690,-4650.41,0.00054794,120]
[320718201,1711531847700,-1777.65,0.00054794,120]
[320718202,1711531847710,-151.0,0.00054794,120]
[320718203,1711531847721,-524.94,0.00054794,120]
[320718204,1711531847730,-2207.18,0.00054794,120]
[320718205,1711531847740,-151.0,0.00054794,120]
[320718206,1711531847750,-5257.55,0.00054794,120]
[320718207,1711531847759,-500.0,0.00054794,120]
[320718208,1711531847769,-779.25,0.00054794,120]
[320718209,1711531847778,-500.0,0.00054794,120]
[320718210,1711531847788,-2469.94,0.00054794,120]
[320718211,1711531847797,-500.0,0.00054794,120]
[320718212,1711531847807,-757.65,0.00054794,120]
[320718213,1711531847816,-151.0,0.00054794,120]
[320718215,1711531847825,-193.636468,0.00054794,120]
[320718216,1711531847834,-552.21,0.00054794,120]
[320718217,1711531847844,-4250.27,0.00054794,120]
[320718218,1711531847854,-4915.26,0.00054794,120]
[320718219,1711531847865,-3918.75,0.00054794,120]
[320718220,1711531847874,-53287.23,0.00054794,120]
[320718221,1711531847883,-500.0,0.00054794,120]
[320718222,1711531847893,-648.69,0.00054794,120]
[320718223,1711531847902,-4113.43,0.00054794,120]
[320718224,1711531847911,-500.0,0.00054794,120]
[320718225,1711531847920,-1576.62,0.00054794,120]
[320718226,1711531847929,-5576.53,0.00054794,120]
[320718227,1711531847938,-500.0,0.00054794,120]
[320718228,1711531847947,-3314.77,0.00054794,120]
[320718229,1711531847956,-1034.84,0.00054794,120]
[320718230,1711531847965,-786.38,0.00054794,120]
[320718231,1711531847975,-500.0,0.00054794,85]
[320718232,1711531847984,-1891.4,0.00054794,120]
[320718233,1711531847993,-5205.21,0.00054794,120]
[320718234,1711531848003,-1087.33,0.00054794,120]
[320718235,1711531848015,-500.0,0.00054794,120]
[320718236,1711531848025,-507.16082916,0.00054794,120]
[320718237,1711531848034,-500.0,0.00054794,120]
[320718238,1711531848043,-2349.37,0.00054794,120]
[320718239,1711531848053,-881.46,0.00054794,120]
[320718240,1711531848062,-524.64,0.00054794,120]
[320718241,1711531848071,-301.85,0.00054794,120]
[320718242,1711531848081,-951.7,0.00054794,120]
[320718243,1711531848093,-5965.79,0.00054794,120]
[320718244,1711531848103,-15519.5,0.00054794,120]
[320718245,1711531848112,-500.0,0.00054794,120]
[320718246,1711531848121,-289.28810693,0.00054794,120]
[320718247,1711531848131,-500.0,0.00054794,120]
[320718248,1711531848140,-1461.03,0.00054794,120]
[320718249,1711531848149,-500.0,0.00054794,120]
[320718250,1711531848158,-2049.25,0.00054794,120]
[320718251,1711531848167,-5568.74,0.00054794,120]
[320718252,1711531848176,-500.0,0.00054794,120]
[320718253,1711531848185,-1091.85,0.00054794,120]
[320718254,1711531848194,-2371.9,0.00054794,120]
[320718255,1711531848203,-5312.45,0.00054794,21]
[320718256,1711531848212,-500.0,0.00054794,120]
[320718257,1711531848221,-1675.86,0.00054794,120]
[320718258,1711531848230,-4946.95,0.00054794,120]
[320718259,1711531848240,-857.9,0.00054794,120]
[320718260,1711531848249,-500.0,0.00054794,120]
[320718261,1711531848258,-7260.49,0.00054794,120]
[320718262,1711531848267,-2181.49,0.00054794,120]
[320718263,1711531848277,-20131.11,0.00054794,120]
[320718264,1711531848286,-11042.37,0.00054794,120]
[320718265,1711531848296,-6897.21,0.00054794,120]
[320718266,1711531848306,-651.55,0.00054794,120]
[320718267,1711531848315,-701.95,0.00054794,120]
[320718268,1711531848325,-2130.92,0.00054794,120]
[320718269,1711531848336,-779.79,0.00054794,120]
[320718270,1711531848346,-4603.54,0.00054794,120]